[Event "MPL 41st IND-ch Teams 2022"]
[Site "Jalgaon"]
[Date "2022.04.09"]
[Round "2.4"]
[White "Mithil Anande P"]
[Black "Raja Rithvik R"]
[Result "0-1"]
[ECO "D04"]
[WhiteElo "1698"]
[BlackElo "2490"]
[Annotator "TA"]
[PlyCount "76"]
[EventDate "2022.04.08"]
[EventType "team-tourn"]
[EventCountry "IND"]
[SourceTitle "playchess.com"]
[Source "ChessBase"]
[SourceQuality "1"]
[TimeControl "5400+30"]

{[%evp 12,76,0,-4,0,-8,-6,-6,0,-16,-25,-30,-19,-33,-29,-35,-23,-45,-38,-35,-26,-22,-2,-8,0,-48,-49,-54,-51,-94,-106,-122,-125,-134,-131,-139,-129,-159,-124,-164,-155,-195,-187,-265,-188,-310,-254,-270,-270,-281,-285,-435,-426,-705,-684,-689,-683,-5510,-5510,-5510,-5514,-29988,-29989,-29989,-29990,-29994,-29995]} 1. d4 {[%emt 0:00:18]} Nf6 {[%emt 0:00:15]} 2. Nf3 {[%emt 0:00:22]} d5 {[%emt 0:00:13]} 3. e3 {[%emt 0:00:16]} c5 {[%emt 0:00:07]} 4. b3 {[%emt 0:00:38]} cxd4 {[%emt 0:00:46]} 5. exd4 {[%emt 0:00:06]} Nc6 {[%emt 0:00:03]} 6. Bb2 {[%emt 0:00:31]} Bg4 {[%emt 0:01:07]} 7. Be2 {[%emt 0:02:47]} e6 {[%emt 0:00:17] D04: Colle System.} 8. O-O {[%emt 0:00:10]} Be7 {[%emt 0:00:03]} 9. Nbd2 {[%emt 0:01:19]} O-O {[%emt 0:00:06] The position is equal.} 10. a3 {[%emt 0:00:25]} Rc8 {[%emt 0:00:18]} 11. Bd3 {[%emt 0:00:35] [#]} Re8 $146 {[%emt 0:04:58]} ({Predecessor:} 11... Qb6 12. Qe1 a5 13. Qe3 Bh5 14. Rac1 a4 15. b4 Rfd8 16. c4 dxc4 17. Nxc4 Qa7 {1-0 (63) Polanco Alcantara,M (2067)-Del Rosario Moreno,C (2117) Santo Domingo 2018}) 12. Qe1 {[%emt 0:00:32]} Qc7 {[%emt 0:11:21]} 13. Qe3 {[%emt 0:03:58]} Bd6 {[%emt 0:03:33] Hoping for ...Bf4.} 14. Ne5 {[%emt 0:00:15]} Bf5 {[%emt 0:00:07]} 15. Ndf3 Ne7 {[%emt 0:20:24]} 16. Rfc1 {[%emt 0:28:17]} Bxd3 {[%emt 0:07:58]} 17. Qxd3 {[%emt 0:06:08]} Ng6 18. Qe3 {[%emt 0:04:06]} (18. Nxg6 $11 {is more appropriate.} hxg6 19. g3) 18... b5 $15 {[%emt 0:05:53]} 19. h4 {[%emt 0:01:50]} Qb6 {[%emt 0:03:26]} 20. g3 {[%emt 0:01:53] Black converts the advantage convincingly.} Bxe5 {[%emt 0:04:59]} 21. Nxe5 {[%emt 0:00:11]} Nxe5 {[%emt 0:00:04]} 22. Qxe5 {[%emt 0:01:22]} Ne4 {[%emt 0:00:12]} 23. Kg2 {[%emt 0:04:25]} Rc6 {[%emt 0:03:18] &Nero is more active.} 24. f3 {[%emt 0:02:17]} Nd6 {[%emt 0:05:52]} 25. h5 {[%emt 0:08:46][%cal Oh5h6]} h6 {[%emt 0:02:14]} 26. g4 {[%emt 0:01:21]} a5 {[%emt 0:00:17][%cal Ba7a5,Ba5a4,Ba4b3][%mdl 32]} 27. Kh3 {[%emt 0:02:33]} (27. g5 {was worth a try.}) 27... Qc7 {[%emt 0:01:50]} 28. Qe2 {[%emt 0:04:53]} (28. c4 {was called for.} bxc4 29. bxc4) 28... Rc8 {[%emt 0:00:57]} 29. c3 {[%emt 0:00:15]} a4 {[%emt 0:00:07]} 30. Rg1 {[%emt 0:07:18]} axb3 {[%emt 0:04:19] aiming for ...Nc4.} 31. g5 {[%emt 0:00:14]} (31. Rab1 {might work better.}) 31... Nf5 $19 {[%emt 0:00:38] Strongly threatening ...hxg5.} 32. gxh6 {[%emt 0:02:06]} (32. Qh2 $142 Rxc3 33. Qxc7 R3xc7 34. f4) 32... Qf4 {[%emt 0:00:18]} 33. Rg4 {[%emt 0:03:56] Prevents Qh4+.} Qxh6 {[%emt 0:00:28]} 34. Re1 {[%emt 0:01:14]} Rxc3 {[%emt 0:06:17]} 35. Bxc3 {[%emt 0:00:15]} Rxc3 {[%emt 0:00:05]} 36. Qxb5 {[%emt 0:02:16]} Qxh5+ {[%emt 0:01:01] Black mates.} 37. Kg2 {[%emt 0:00:13]} Nh4+ {[%emt 0:01:10]} 38. Rxh4 {[%emt 0:02:16]} Qxf3+ {[%emt 0:00:05] Weighted Error Value: White=0.80/Black=0.07 (flawless)} 0-1

[Event "MPL 41st IND-ch Teams 2022"]
[Site "Jalgaon"]
[Date "2022.04.09"]
[Round "2.5"]
[White "Arun Kataria"]
[Black "Vignesh N R"]
[Result "0-1"]
[ECO "B67"]
[WhiteElo "1629"]
[BlackElo "2444"]
[Annotator "TA"]
[PlyCount "132"]
[EventDate "2022.04.08"]
[EventType "team-tourn"]
[EventCountry "IND"]
[SourceTitle "playchess.com"]
[Source "ChessBase"]
[SourceQuality "1"]
[TimeControl "5400+30"]

{[%evp 17,132,37,70,0,16,0,0,0,0,0,6,11,8,0,0,-13,0,0,0,0,0,14,0,0,0,0,0,0,0,0,0,0,0,0,0,0,0,-22,-1,-27,-27,-26,-26,-138,-132,-143,-145,-143,-143,-154,-148,-156,-131,-129,-82,-121,-124,-141,-129,-128,-122,-147,-93,-93,0,-145,-121,-154,-131,-143,-95,-146,-100,-203,-170,-233,-203,-444,-399,-379,-350,-483,-525,-525,-522,-519,-506,-469,-486,-460,-422,-429,-308,-550,-508,-1193,-1032,-1200,-1200,-1099,-1087,-1013,-415,-1258,-2860,-5157,-5069,-5072,-5057,-4756,-4652,-4678,-4590,-4652,-4482,-2033,-1606]} 1. e4 {[%emt 0:05:09]} c5 {[%emt 0:00:25]} 2. Nf3 {[%emt 0:00:06]} d6 {[%emt 0:00:27]} 3. d4 {[%emt 0:00:18]} cxd4 {[%emt 0:00:05]} 4. Nxd4 {[%emt 0:00:03]} Nf6 {[%emt 0:00:04]} 5. Nc3 {[%emt 0:00:05]} a6 {[%emt 0:00:12]} 6. Bg5 {[%emt 0:00:12]} Nc6 {[%emt 0:00:19]} 7. Qd2 {[%emt 0:01:43]} e6 {[%emt 0:00:18]} 8. O-O-O {[%emt 0:00:27]} Bd7 $1 {[%emt 0:00:15] The main line 8...Bd7 scores better than 8...h6.} 9. f4 {[%emt 0:15:44]} Qb6 {[%emt 0:02:25]} 10. e5 {[%emt 0:01:15] B97: Sicilian Najdorf: Poisoned Pawn.} ({White should try} 10. Nf3 $14) 10... dxe5 $11 {[%emt 0:19:21]} 11. Nxc6 {[%emt 0:00:30][%mdl 64] [#] Remove Defender} Bxc6 {[%emt 0:00:30]} 12. fxe5 {[%emt 0:00:30] The position is equal.} Nd7 {[%emt 0:00:30]} 13. Ne4 $1 {[%emt 0:07:42]} Qb4 {[%emt 0:13:54]} 14. Nd6+ {[%emt 0:04:06]} Bxd6 {[%emt 0:00:16] [#]} 15. Qxd6 $146 {[%emt 0:00:12]} ({Predecessor:} 15. exd6 Qxd2+ 16. Rxd2 Rc8 17. h4 Nc5 18. Rd4 e5 19. Rc4 Ne4 20. Be2 Nxd6 21. Rc5 {0-1 (36) Abdulov,O (2371)-Mchedlishvili,M (2640) Nakhchivan 2013}) 15... Qxd6 {[%emt 0:00:05]} 16. exd6 {[%emt 0:00:02]} Rc8 {[%emt 0:00:41]} 17. b3 {[%emt 0:02:42]} b5 {[%emt 0:11:27]} 18. Kb2 {[%emt 0:01:25]} f6 19. Be3 {[%emt 0:01:26]} Kf7 {[%emt 0:06:47]} 20. Rd2 {[%emt 0:04:03]} Bd5 {[%emt 0:01:49]} 21. a4 {[%emt 0:01:25]} bxa4 {[%emt 0:02:55]} 22. c4 {[%emt 0:01:48]} ({Of course not} 22. bxa4 Rc6 23. Be2 Rb8+ 24. Kc1 Rb4 $17) 22... Rb8 {[%emt 0:03:19]} 23. cxd5 {[%emt 0:05:40]} Rxb3+ {[%emt 0:00:03]} 24. Ka2 {[%emt 0:00:07] Strongly threatening dxe6+.} Rxe3 {[%emt 0:00:11]} 25. dxe6+ {[%emt 0:00:11]} Kxe6 {[%emt 0:00:04] Threatens to win with ...Nc5.} 26. Bc4+ $1 {[%emt 0:00:38]} Kf5 {[%emt 0:00:12]} 27. Rf1+ {[%emt 0:01:01]} Kg6 {[%emt 0:01:12]} 28. Bxa6 {[%emt 0:02:31]} Nc5 {[%emt 0:02:11]} 29. Bc4 {[%emt 0:05:34]} Rd8 {[%emt 0:00:56]} 30. Rd5 {[%emt 0:15:28]} (30. Rf3 $11 {remains equal.} Ne4 31. Rxe3 Nxd2 32. Rg3+ Kh6 33. Rh3+ Kg5 34. Rg3+ Kh6 35. Rh3+ Kg5 36. Rg3+ Kh6) 30... Ne4 $17 {[%emt 0:01:49] And now ...Nc3+ would win.} 31. Bd3 {[%emt 0:00:05]} Kf7 {[%emt 0:01:27]} 32. Bxe4 {[%emt 0:00:52]} Rxe4 {[%emt 0:00:01][%mdl 4096] Endgame KRR-KRR} 33. Rd2 {[%emt 0:01:15] Inhibits Re2.} Rd7 {[%emt 0:03:31]} 34. Ka3 {[%emt 0:01:31]} Rc4 {[%emt 0:00:26]} 35. Rfd1 {[%emt 0:01:23]} Rh4 {[%emt 0:01:51]} ({Better is} 35... f5 36. Re1 g6) 36. h3 {[%emt 0:05:58]} Rc4 {[%emt 0:00:03]} 37. Re2 {[%emt 0:03:25]} Rc6 {[%emt 0:01:21]} 38. Red2 {[%emt 0:02:46]} Rb6 {[%emt 0:00:04]} 39. Rd4 {[%emt 0:01:25]} Ke6 {[%emt 0:00:49]} (39... h5 $142 40. R4d2 f5) 40. Re1+ {[%emt 0:02:32] [#]} Kf7 {[%emt 0:00:02]} (40... Kf5 $142 $1 41. g4+ Kg6) 41. Red1 {[%emt 0:00:05]} h5 {[%emt 0:00:13]} 42. R1d2 {[%emt 0:01:12]} Ke8 {[%emt 0:06:39]} 43. Rd1 {[%emt 0:02:20]} Kd8 {[%emt 0:00:41]} ({Black should play} 43... Rb3+ 44. Ka2 (44. Kxa4 Rb2 $17) 44... Kf7) 44. R1d2 {[%emt 0:00:22]} (44. Rd5 $142) 44... Rdb7 {[%emt 0:00:22]} (44... Rb3+ $142 45. Ka2 (45. Kxa4 $2 Rb1 $19) 45... Rdb7) 45. Ka2 {[%emt 0:03:14]} (45. Rh4 $17 {was necessary.}) 45... Kd7 {[%emt 0:00:18][%cal Oa4a3]} 46. Rd5 {[%emt 0:00:58]} (46. Re4 {was worth a try.}) 46... a3 {[%emt 0:01:10] White must now prevent ...Rb2+.} 47. R5d3 $2 {[%emt 0:00:54]} (47. Rxh5 Rb2+ 48. Rxb2 Rxb2+ 49. Kxa3 Rxg2 50. Ra5) 47... Rb2+ $19 {[%emt 0:00:10]} 48. Kxa3 {[%emt 0:00:03]} R2b6 {[%emt 0:00:49][%cal Rb6a6]} 49. Ka2 {[%emt 0:00:13]} Ra7+ {[%emt 0:00:09]} 50. Ra3 {[%emt 0:00:03]} Rxa3+ {[%emt 0:00:02]} 51. Kxa3 {[%emt 0:00:05]} Rxd6 {[%emt 0:00:02] KR-KR} 52. Re2 {[%emt 0:00:07]} Rb6 {[%emt 0:00:17]} 53. h4 {[%emt 0:00:48]} Kd6 {[%emt 0:00:12]} 54. Re3 {[%emt 0:00:32]} Kd5 {[%emt 0:00:24]} 55. Re7 $2 {[%emt 0:01:22]} (55. Rg3 Rb7 56. Ka4) 55... g6 {[%emt 0:00:06]} 56. Ka4 {[%emt 0:00:45]} (56. Re3 $142 f5 57. Rg3) 56... Rb2 {[%emt 0:00:15]} 57. g3 {[%emt 0:00:17]} Rg2 {[%emt 0:00:26]} 58. Re3 {[%emt 0:00:06]} Kd4 {[%emt 0:00:12]} 59. Rf3 {[%emt 0:00:13]} Ke4 {[%emt 0:00:13]} 60. Rxf6 {[%emt 0:00:55]} (60. Rf4+ $142 Ke5 61. Rf3) 60... Rxg3 {[%emt 0:00:01] Black is clearly winning.} 61. Kb4 {[%emt 0:00:44]} Ke5 {[%emt 0:00:12]} 62. Rc6 {[%emt 0:00:54]} Rg4+ {[%emt 0:00:06]} 63. Kc3 {[%emt 0:00:10]} Kf5 {[%emt 0:00:13]} 64. Kd3 {[%emt 0:00:23]} Rxh4 {[%emt 0:00:09]} 65. Ke3 {[%emt 0:00:05]} Ra4 {[%emt 0:00:11]} 66. Kf3 {[%emt 0:00:16]} Ra3+ {[%emt 0:00:05] Weighted Error Value: White=0.47/Black=0.13 (very precise)} 0-1

[Event "MPL 41st IND-ch Teams 2022"]
[Site "Jalgaon"]
[Date "2022.04.09"]
[Round "2.6"]
[White "Swapnil, S. Dhopade"]
[Black "Chandrajeet Singh Rajawat"]
[Result "1-0"]
[ECO "A45"]
[WhiteElo "2495"]
[BlackElo "1789"]
[Annotator "TA"]
[PlyCount "67"]
[EventDate "2022.04.08"]
[EventType "team-tourn"]
[EventCountry "IND"]
[SourceTitle "playchess.com"]
[Source "ChessBase"]
[SourceQuality "1"]
[TimeControl "5400+30"]

{[%evp 15,67,24,46,9,10,7,8,1,42,64,59,44,58,10,10,0,34,36,32,23,56,61,58,48,56,35,22,23,135,130,144,131,196,166,220,213,216,216,364,205,204,225,234,223,296,261,422,422,422,422,419,350,337,309]} 1. d4 Nf6 2. Bg5 d5 3. e3 g6 4. Bxf6 exf6 5. c4 c6 6. Nc3 dxc4 7. Bxc4 Bg7 8. Nge2 O-O 9. O-O {D00: 1 d4 d5: Unusual lines.} f5 10. Rc1 Nd7 11. Nf4 {[#] The position is equal.} c5 $146 ({Predecessor:} 11... Nf6 12. a4 Qe7 13. Qe2 Kh8 14. Rfd1 Be6 15. b3 Rad8 16. a5 Bc8 17. Qa2 g5 {½-½ (41) Balasubramaniam,H (2270)-Patil,P (2178) Mumbai 2019}) 12. dxc5 Nxc5 13. b4 Ne6 14. Bxe6 (14. Qb3 $14) 14... Bxe6 $11 15. Nxe6 fxe6 16. Qb3 Qe8 17. Rfd1 Bxc3 18. Rxc3 Qf7 19. Rcd3 Rae8 20. g3 e5 21. Qa4 Re7 (21... f4 $1 $11 {remains equal.}) 22. Qxa7 $16 f4 23. Rd8 Qf5 (23... fxe3 $16 {was called for.} 24. Rxf8+ (24. Qxe3 Qxa2 25. Qc5 Qf7 $16) 24... Kxf8 25. fxe3 Kg7) 24. Rxf8+ Kxf8 (24... Qxf8 $142 25. exf4 exf4) 25. exf4 exf4 $18 {[%mdl 4096] Endgame KQR-KQR} 26. Qb8+ Re8 (26... Kf7 $142 27. Qxf4 Qxf4 28. gxf4 Kf6) 27. Qxf4 (27. Qxb7 $142 Re7 28. Qb6) 27... Qxf4 28. gxf4 {KR-KR} Re4 {[#]} 29. a3 Ke7 30. Rd5 {Threatens to win with Rb5.} Re1+ $2 (30... Rxf4 $2 31. Rb5 $18) (30... Rc4 31. Rb5 Rc7) 31. Kg2 {Strongly threatening Re5+.} Ra1 32. Rb5 Rxa3 33. Rxb7+ Kf6 34. Rxh7 {Weighted Error Value: White=0.14 (very precise) /Black=0.36} 1-0

[Event "MPL 41st IND-ch Teams 2022"]
[Site "Jalgaon"]
[Date "2022.04.09"]
[Round "2.7"]
[White "Bharadia Yash"]
[Black "Visakh N R"]
[Result "1-0"]
[ECO "B90"]
[WhiteElo "1607"]
[BlackElo "2522"]
[Annotator "TA"]
[PlyCount "77"]
[EventDate "2022.04.08"]
[EventType "team-tourn"]
[EventCountry "IND"]
[SourceTitle "playchess.com"]
[Source "ChessBase"]
[SourceQuality "1"]
[TimeControl "5400+30"]

{[%evp 21,77,0,23,25,20,31,33,0,18,0,36,20,25,30,23,43,57,39,87,54,42,47,89,67,52,53,75,99,92,92,130,169,186,179,129,116,258,245,213,227,302,207,189,191,221,195,245,240,375,363,507,516,595,587,876,875,821,803]} 1. e4 c5 2. Nf3 d6 3. d4 cxd4 4. Nxd4 Nf6 5. Nc3 a6 6. Be3 e5 7. Nb3 Be7 8. f3 Be6 9. Qd2 h5 10. O-O-O Nbd7 11. Kb1 Rc8 {now scores much better than the old 11...b5.} 12. Bd3 {B90: Sicilian Najdorf: Unusual White 6th moves, 6 Be3 Ng4 and 6 Be3 e5.} Qc7 13. h3 h4 14. f4 {White is slightly better.} b5 $1 15. Rhe1 Bc4 16. fxe5 dxe5 17. Nd5 Nxd5 18. exd5 Bxd3 19. Qxd3 {Strongly threatening d6.} Qc4 {[#]} (19... Bd6 $1 $14) 20. Qd2 $146 ({Predecessor:} 20. Qf5 g6 21. Qf2 Qc7 22. Nd4 Nc5 23. Nc6 Ne4 24. Qe2 Bd6 25. Bb6 Nc3+ 26. bxc3 Qxb6 27. Qf3 {1-0 (27) Shirov,A (2683)-Delgado Ramirez,N (2615) Florianopolis 2017}) 20... Bb4 21. c3 Be7 22. Na5 Qe4+ 23. Ka1 {[%cal Oe3c5] And now Bc5! would win.} Qg6 24. d6 $36 {[%mdl 2048] White is on the roll.} Bd8 25. Nb3 O-O 26. Qd5 {Qb7 is the strong threat.} Bg5 27. Bxg5 Qxg5 28. Qb7 {&Bianco is more active.} Rfd8 {This costs Black the game.} (28... Qf5 $16) 29. Na5 $1 $18 Rb8 30. Qf3 (30. Qxa6 Rb6 31. Qa7 Qxg2 $11) 30... e4 31. Rxe4 {[%cal Be1e4,Be4g4,Bg4f4,Bf4d4][%mdl 32]} Rb6 {[%cal Ob6d6] Prevents Nc6.} 32. Rg4 Qf6 33. Rf4 Qh6 {[#]} (33... Qg5 $142) 34. Rfd4 $1 {Threatens to win with Nc6.} ({Not} 34. Rxf7 $2 Ne5 35. Qe4 (35. Qf2 $2 Rbxd6 36. Rb1 Nxf7 $19) 35... Nxf7 $19) 34... Ne5 {Against Nc6} (34... Qf6 {keeps fighting.} 35. Qxf6 Nxf6) 35. Qe4 Qf6 {[%cal Rd8d6]} 36. Nb7 {[%cal Ba5b7,Bb7c5,Bc5e4][%mdl 32] White is clearly winning.} Rd7 37. Nc5 Rdxd6 {[#]} 38. Qa8+ $1 Kh7 39. Ne4 $1 {[%csl LRd6,LRf6] Weighted Error Value: White=0.08 (flawless) /Black=0.32} 1-0

[Event "MPL 41st IND-ch Teams 2022"]
[Site "Jalgaon"]
[Date "2022.04.09"]
[Round "2.8"]
[White "Shyaamnikhil P"]
[Black "Mandloi, Mukesh"]
[Result "1-0"]
[ECO "A05"]
[WhiteElo "2442"]
[BlackElo "1749"]
[Annotator "TA"]
[PlyCount "111"]
[EventDate "2022.04.08"]
[EventType "team-tourn"]
[EventCountry "IND"]
[SourceTitle "playchess.com"]
[Source "ChessBase"]
[SourceQuality "1"]
[TimeControl "5400+30"]

{[%evp 14,111,15,14,59,50,51,0,70,77,70,23,29,14,38,8,24,12,38,41,50,10,18,0,-2,-41,-11,-88,1148,-975,-147,-931,1133,-1804,-162,-353,-53,-53,-57,-140,-87,-182,-172,-228,-168,-166,-162,-237,-233,-232,-192,-237,-234,-247,-171,-152,0,0,93,108,108,104,114,104,268,257,539,534,497,485,463,427,574,603,594,586,525,412,492,462,430,430,370,253,29959,29960,29958,29962,29969,29969,29969,29969,29965,29956,29961,29965,29969,29969,2725,2558]} 1. Nf3 Nf6 2. g3 e6 3. Bg2 d5 4. O-O Be7 5. d3 {[%cal Bd2d3,Bd3e4,Be4e5][%mdl 32]} O-O 6. Nbd2 Nbd7 7. e4 dxe4 8. dxe4 {[#]} a5 $146 {A07: Réti Opening: New York and Capablanca Systems.} ({Predecessor:} 8... e5 9. Qe2 Re8 10. Nc4 Bf8 11. Rd1 Qe7 12. Ne3 Nc5 13. Nh4 g6 14. Nd5 Nxd5 15. exd5 f5 16. c4 a5 17. Nf3 {0-1 (65) Fedotov,N (2311)-Yaran,S (2272) Chess.com INT 2022}) 9. e5 Nd5 10. Ne4 ({Better is} 10. Re1 $14) 10... Nc5 (10... b5 $11) 11. Nxc5 $14 Bxc5 12. Bg5 (12. Ng5 $1 $14) 12... Be7 $11 13. h4 h6 14. Bxe7 Qxe7 15. Qe2 b6 16. c4 Ba6 17. Qe4 Qb4 {[%csl LRb2,LRc4]} 18. Rfc1 Ne7 19. Rc2 Rab8 20. a4 (20. Rd1 $11) 20... Qxa4 $2 {[%mdl 8192]} 21. Rc3 $4 {[%mdl 8192]} Bb7 $2 22. Qe2 $2 {[%mdl 8192]} (22. Rxa4 $17 Bxe4 23. c5) 22... Rbd8 $4 {[%mdl 8192]} 23. b3 $4 {[%mdl 8192]} Qd7 $2 (23... Qxa1+ 24. Ne1 {[#]} Rd1 $1) 24. b4 $2 (24. Rac1) 24... Nf5 $2 (24... axb4 $19 25. Rcc1 c5) 25. bxa5 $15 bxa5 26. c5 (26. Rca3 $15) 26... Bc6 ({Black should try} 26... a4 27. Rca3 Bc6) 27. Rac1 (27. Rxa5 $17 {is a better defense.} Bxf3 28. Qxf3) 27... a4 28. h5 (28. Qc4 {was called for.}) 28... Bxf3 29. Qxf3 Qd2 {[#] ...Nd4 is the strong threat.} 30. Bf1 (30. Qf4 $142) 30... Nd4 $19 31. Qe3 Nb3 32. Qxd2 Rxd2 ({Worse is} 32... Nxd2 33. Bb5 $17) 33. Re1 Ra2 34. Rd1 Ra3 $2 ({Black should play} 34... Rb2 $17 {Strongly threatening ...Ra8.} 35. Bb5 a3) 35. c6 $11 Ra1 (35... Ra8 $11 {keeps the balance.}) 36. Rxa1 $16 {White leaves nothing to chance now.} Nxa1 {[%mdl 4096] Endgame KRB-KRN} 37. Ra3 {[%csl LRa1,LRa4] &Bianco is more active.} Nb3 38. Rxa4 {aiming for Ra7.} Re8 $2 (38... Rc8 $16) 39. Ra7 $18 Re7 $2 (39... Kf8 40. Rxc7 Nd4) 40. Ra8+ Kh7 41. Rd8 Nc5 42. Bd3+ g6 43. Bc2 Kg7 44. hxg6 f5 45. exf6+ Kxf6 46. Rh8 e5 47. Rxh6 e4 48. Rh7 {Black must now prevent Rxe7.} Rxh7 (48... Re8 $18 49. Rxc7 Kxg6) 49. gxh7 {KB-KN} Kg7 50. Kf1 Kxh7 51. Ke2 Kg6 52. Ke3 Kf5 53. f3 {[%cal Bf2f3,Bf3f4][%mdl 32]} Ke5 54. Bxe4 Nb3 55. f4+ Kd6 56. g4 {Weighted Error Value: White=0.62/Black=0.76} 1-0

[Event "MPL 41st IND-ch Teams 2022"]
[Site "Jalgaon"]
[Date "2022.04.09"]
[Round "3.1"]
[White "Sharma, Dinesh K."]
[Black "Aravindh, Chithambaram VR."]
[Result "0-1"]
[ECO "B68"]
[WhiteElo "2283"]
[BlackElo "2611"]
[Annotator "TA"]
[PlyCount "84"]
[EventDate "2022.04.08"]
[EventType "team-tourn"]
[EventCountry "IND"]
[SourceTitle "playchess.com"]
[Source "ChessBase"]
[SourceQuality "1"]
[TimeControl "5400+30"]

{[%evp 19,84,10,17,13,21,0,0,0,-13,-37,-46,-41,-35,-93,-97,-86,-56,-73,-73,-83,-70,-72,-75,-58,-73,-72,-72,-79,-75,-75,-75,-68,-49,-99,-99,-191,-194,-179,-193,-219,-208,-214,-189,-185,-155,-555,-566,-547,-545,-545,-545,-545,-545,-545,-545,-769,-721,-1736,-1679,-12826,-9233,-12833,-12832,-12841,-12841,-12844,-12844]} 1. e4 {[%emt 0:00:04]} c5 {[%emt 0:00:09]} 2. Nf3 {[%emt 0:00:05]} d6 {[%emt 0:00:08]} 3. d4 {[%emt 0:00:21]} cxd4 {[%emt 0:00:07]} 4. Nxd4 {[%emt 0:00:05]} Nf6 {[%emt 0:00:08]} 5. Nc3 {[%emt 0:00:06]} Nc6 {[%emt 0:00:05]} 6. Bg5 {[%emt 0:00:29]} e6 {[%emt 0:00:08]} 7. Qd2 {[%emt 0:00:07]} a6 {[%emt 0:00:08]} 8. O-O-O {[%emt 0:01:00]} Be7 {[%emt 0:00:12]} 9. f4 {[%emt 0:01:30]} Bd7 {[%emt 0:00:11]} 10. Be2 {[%emt 0:05:00]} h6 {[%emt 0:24:03]} 11. Bh4 {[%emt 0:07:49] B68: Sicilian: Richter-Rauzer: 7...a6 8 0-0-0 Bd7 9 f4 Be7 .} Rc8 {[%emt 0:00:59]} 12. Nxc6 {[%emt 0:04:50]} Bxc6 {[%emt 0:03:13]} 13. Bf3 {[%emt 0:02:09] The position is equal.} O-O {[%emt 0:13:24][%cal Of6e4] [#]} 14. Kb1 $146 {[%emt 0:08:19] [#]} (14. e5 {with more complications.} dxe5 15. Bxc6 Rxc6 16. fxe5 Nd5 17. Bxe7 Qxe7 18. Nxd5 exd5 19. Qxd5 Rc5 20. Qd6) ({Predecessor:} 14. g4 b5 15. Rde1 b4 16. Nd1 Nxe4 17. Bxe4 Bxh4 18. Re2 Bb5 19. Rg2 Rc4 20. Bd3 Rxf4 {0-1 (39) Keogh,E-Holm Pedersen,S Havana 1966}) 14... Nxe4 $1 {[%emt 0:15:13]} 15. Nxe4 {[%emt 0:07:50] Strongly threatening Bxe7.} Bxh4 {[%emt 0:00:12]} 16. Nxd6 {[%emt 0:00:19]} (16. Qxd6 $15 Qa5 17. Qd2) 16... Bxf3 $17 {[%emt 0:04:39]} 17. gxf3 {[%emt 0:00:54]} Rc7 {[%emt 0:00:21] Threatens to win with ...Rd7.} 18. Ne4 {[%emt 0:03:26]} Qxd2 {[%emt 0:10:02]} 19. Rxd2 {[%emt 0:00:32]} f5 {[%emt 0:00:36]} 20. Ng3 {[%emt 0:01:47]} Rd8 {[%emt 0:01:18]} 21. Rxd8+ {[%emt 0:00:44]} Bxd8 {[%emt 0:00:05][%mdl 4096] Endgame KRB-KRN} 22. Rd1 {[%emt 0:00:10] Inhibits Rd7.} Be7 {[%emt 0:00:09]} 23. Ne2 {[%emt 0:01:05]} Kf7 {[%emt 0:00:18]} 24. c3 {[%emt 0:02:00]} g5 {[%emt 0:02:11]} 25. Kc2 {[%emt 0:01:19]} Bf6 {[%emt 0:04:00]} 26. fxg5 {[%emt 0:01:59]} (26. a4 $15) 26... hxg5 {[%emt 0:00:11]} 27. f4 {[%emt 0:00:51]} (27. h3 $17) 27... gxf4 $19 {[%emt 0:03:16]} 28. Nxf4 {[%emt 0:00:04]} Be5 {[%emt 0:00:05]} 29. Nd3 {[%emt 0:00:28]} Bxh2 {[%emt 0:01:06]} 30. Rh1 {[%emt 0:00:03]} Bd6 {[%emt 0:00:08]} 31. Rh7+ {[%emt 0:00:23]} Kf6 {[%emt 0:00:13]} 32. Rxc7 {[%emt 0:02:40] White does not recover from this.} (32. Rh6+ $17 Ke7 33. Kd2) 32... Bxc7 $17 {[%emt 0:00:05] KB-KN. Black is clearly winning.} 33. Nc5 {[%emt 0:00:06]} Ke5 {[%emt 0:05:32]} 34. c4 {[%emt 0:04:27]} Kd6 {[%emt 0:01:03]} ({Worse is} 34... f4 35. Kd3 $17) 35. b4 {[%emt 0:00:16] [#]} Bb6 $1 {[%emt 0:00:07]} 36. Nb3 {[%emt 0:00:16]} Bg1 {[%emt 0:00:13] ...e5 is the strong threat.} 37. a4 {[%emt 0:01:18]} e5 {[%emt 0:02:43][%cal Be6e5,Be5e4,Be4e3][%mdl 32] White must now prevent ...e4.} 38. c5+ {[%emt 0:00:59]} Kd5 {[%emt 0:01:14]} 39. Na5 {[%emt 0:00:04]} f4 {[%emt 0:00:27][%cal Bf5f4,Bf4f3][%mdl 32]} 40. Nxb7 {[%emt 0:00:59]} f3 {[%emt 0:00:09]} 41. Kd1 {[%emt 0:01:19]} e4 {[%emt 0:00:09] ( -> ...e3)} 42. Nd6 {[%emt 0:00:57]} e3 {[%emt 0:01:00] Weighted Error Value: White=0.92/Black=0.03 (flawless)} 0-1